fUST/lending_fUST_20251129
["ID","MTS","AMOUNT","RATE_DAILY","PERIOD"]
[395023152,1764346168205,-620.59244258,0.00013348,2]
[395023153,1764346168228,-620.59244258,0.00013483,2]
[395023154,1764346168251,-150.0,0.00013688,2]
[395023155,1764346168273,-267.0,0.00014178,2]
[395023156,1764346168295,-353.59244258,0.00014624,2]
[395023157,1764346168317,-154.75212428,0.00014818,2]
[395023158,1764346168340,-1200.0,0.00014916,2]
[395023159,1764346168361,-225.0,0.00014916,2]
[395023160,1764346168383,-300.0,0.00014917,2]
[395023161,1764346168411,-500.0,0.00014917,2]
[395023162,1764346168437,-241.71935613,0.00014917,2]
[395023163,1764346168459,-50000.0,0.00014918,2]
[395023164,1764346168480,-50000.0,0.00014918,2]
[395023165,1764346168501,-500.0,0.00015,2]
[395023166,1764346168522,-387.95960912,0.00015,2]
[395023168,1764346173097,-353.59244258,0.00014614,2]
[395023169,1764346173118,-112.04039088,0.00015,2]
[395023170,1764346173140,-500.0,0.00015,2]
[395023171,1764346173160,-520.3051218,0.00015,2]
[395023172,1764346173182,-386.8380506,0.00015548,2]
[395023173,1764346173205,-177.0,0.00015688,2]
[395023174,1764346173229,-316.0,0.00016327,2]
[395023175,1764346173252,-154.75212425,0.00016979,2]
[395023176,1764346176571,353.59244258,0.00014468,2]
[395023255,1764346231865,-204.0,0.00017336,2]
[395023258,1764346231876,-297.0,0.00017336,2]
[395023261,1764346231885,-204.0,0.00017511,2]
[395023264,1764346231894,-204.0,0.00017688,2]
[395023266,1764346231903,-4.77,0.00018106,2]
[395023268,1764346231915,-1106.23,0.00018106,2]
[395023270,1764346231924,-600.0,0.00018356,7]
[395023272,1764346231933,-194.72792766,0.00018389,2]
[395023274,1764346231942,-166.0,0.000185,2]
[395023276,1764346231952,-333.0,0.000185,2]
[395023278,1764346231962,-333.0,0.000185,2]
[395023280,1764346231971,-154.210138,0.00018505,10]
[395023284,1764346231980,-1180.46150104,0.00018553,2]
[395023287,1764346231989,-29426.61048357,0.000186,2]
[395023291,1764346232001,-10573.38951643,0.000186,2]
[395023293,1764346232010,-1111.0,0.00018654,2]
[395023296,1764346232019,-154.210138,0.00018696,2]
[395023299,1764346232028,-154.210138,0.0001889,10]
[395023302,1764346232037,-59728.531383,0.000189,2]
[395023305,1764346232046,-151.0,0.000189,2]
[395023308,1764346232055,-151.000176,0.000189,2]
[395023311,1764346232064,-183.8433328,0.000189,2]
[395023313,1764346232073,-201.93286099,0.00018937,2]
[395023315,1764346232082,-151.0,0.00019,2]
[395023317,1764346232091,-236.8457897,0.00019016,2]
[395023318,1764346232100,-181.22247191,0.00019063,2]
[395023319,1764346232110,-10000.0,0.00019078,2]
[395023320,1764346232119,-1180.46150102,0.0001909,2]
[395023321,1764346232128,-151.0,0.000191,2]
[395023323,1764346232138,-154.75212425,0.0001914,2]
[395023325,1764346232147,-4271.39416542,0.00019145,2]
[395023329,1764346232176,-19989.39141838,0.00019145,2]
[395023331,1764346232185,-500.0,0.00019173,2]
[395023333,1764346232194,-500.0,0.00019173,2]
[395023335,1764346232203,-159.11337238,0.00019173,2]
[395023337,1764346232213,-500.0,0.00019173,2]
[395023339,1764346232221,-500.0,0.00019173,2]
[395023341,1764346232231,-500.0,0.00019173,2]
[395023343,1764346232240,-500.0,0.00019173,2]
[395023345,1764346232249,-563.47953264,0.00019173,2]
[395023347,1764346232258,-500.0,0.00019173,2]
[395023349,1764346232267,-500.0,0.00019173,2]
[395023351,1764346232276,-500.0,0.00019173,2]
[395023353,1764346232285,-500.0,0.00019173,2]
[395023355,1764346232294,-500.0,0.00019173,2]
[395023357,1764346232304,-500.0,0.00019173,2]
[395023359,1764346232313,-500.0,0.00019173,2]
[395023361,1764346232322,-500.0,0.00019173,2]
[395023363,1764346232331,-302.85135676,0.00019173,2]
[395023365,1764346232340,-500.0,0.00019173,2]
[395023367,1764346232350,-500.0,0.00019173,2]
[395023369,1764346232359,-500.0,0.00019173,2]
[395023370,1764346232368,-500.0,0.00019173,2]
[395023371,1764346232377,-500.0,0.00019173,2]
[395023372,1764346232387,-159.19364399,0.00019173,2]
[395023373,1764346232396,-500.0,0.00019173,2]
[395023374,1764346232405,-500.0,0.00019173,2]
[395023375,1764346232415,-500.0,0.00019173,2]
[395023376,1764346232425,-500.0,0.00019173,2]
[395023378,1764346232435,-500.0,0.00019173,2]
[395023380,1764346232445,-500.0,0.00019173,2]
[395023382,1764346232455,-345.2047368,0.00019173,2]
[395023384,1764346232465,-500.0,0.00019173,2]
[395023386,1764346232475,-500.0,0.00019173,2]
[395023388,1764346232485,-500.0,0.00019173,2]
[395023390,1764346232495,-500.0,0.00019173,2]
[395023391,1764346232504,-500.0,0.00019173,2]
[395023392,1764346232514,-500.0,0.00019173,2]
[395023393,1764346232523,-234.69335061,0.00019173,2]
[395023394,1764346232533,-500.0,0.00019173,2]
[395023395,1764346232543,-500.0,0.00019173,2]
[395023396,1764346232553,-500.0,0.00019173,2]
[395023397,1764346232563,-158.06287294,0.00019173,2]
[395023398,1764346232573,-500.0,0.00019173,2]
[395023399,1764346232583,-500.0,0.00019173,2]
[395023400,1764346232593,-172.7546171,0.00019173,2]
[395023401,1764346232604,-500.0,0.00019173,2]
[395023402,1764346232615,-634.43735171,0.00019173,2]
[395023403,1764346232627,-500.0,0.00019173,2]
[395023404,1764346232636,-500.0,0.00019173,2]
[395023405,1764346232646,-500.0,0.00019173,2]
[395023406,1764346232656,-200.0,0.00019177,2]
[395023407,1764346232671,-500.0,0.00019178,2]
[395023408,1764346232681,-268.06759183,0.00019178,2]
[395023409,1764346232691,-500.0,0.00019178,2]
[395023410,1764346232701,-500.0,0.00019178,2]
[395023411,1764346232713,-500.0,0.00019178,2]
[395023412,1764346232724,-500.0,0.00019178,2]
[395023413,1764346232734,-500.0,0.00019178,2]
[395023414,1764346232743,-500.0,0.00019178,2]
[395023415,1764346232755,-500.0,0.00019178,2]
[395023416,1764346232764,-500.0,0.00019178,2]
[395023417,1764346232774,-500.0,0.00019178,2]
[395023418,1764346232784,-500.0,0.00019178,2]
[395023419,1764346232794,-500.0,0.00019178,2]
[395023420,1764346232804,-500.0,0.00019178,2]
[395023421,1764346232813,-500.0,0.00019178,2]
[395023422,1764346232823,-500.0,0.00019178,2]
[395023423,1764346232833,-500.0,0.00019178,2]
[395023424,1764346232843,-500.0,0.00019178,2]
[395023425,1764346232853,-500.0,0.00019178,2]
[395023426,1764346232863,-500.0,0.00019178,2]
[395023427,1764346232874,-514.40996809,0.00019178,2]
[395023428,1764346232884,-560.96773911,0.00019178,2]
[395023429,1764346232894,-601.22,0.00019178,2]
[395023430,1764346232903,-500.0,0.00019178,2]
[395023431,1764346232913,-500.0,0.00019178,2]
[395023432,1764346232923,-500.0,0.00019178,2]
[395023433,1764346232934,-500.0,0.00019178,2]
[395023434,1764346232943,-500.0,0.00019178,2]
[395023435,1764346232953,-1918.01,0.00019178,2]
[395023436,1764346232963,-500.0,0.00019178,2]
[395023437,1764346232973,-1470.4,0.00019178,2]
[395023438,1764346232983,-599.84,0.00019178,2]
[395023439,1764346232993,-500.0,0.00019178,2]
[395023440,1764346233003,-875.02,0.00019178,2]
[395023441,1764346233014,-1436.57,0.00019178,2]
[395023442,1764346233025,-500.0,0.00019178,2]
[395023443,1764346233036,-647.79831407,0.00019178,2]
[395023444,1764346233047,-500.0,0.00019178,2]
[395023445,1764346233058,-500.0,0.00019178,2]
[395023446,1764346233068,-590.31637859,0.00019178,2]
[395023447,1764346233079,-554.37183045,0.00019178,2]
[395023448,1764346233089,-500.0,0.00019178,2]
[395023449,1764346233099,-500.0,0.00019178,2]
[395023450,1764346233111,-500.0,0.00019178,2]
[395023451,1764346233122,-500.0,0.00019178,2]
[395023452,1764346233132,-500.0,0.00019178,2]
[395023453,1764346233142,-500.0,0.00019178,2]
[395023454,1764346233153,-417.10741762,0.00019178,2]
[395023455,1764346233163,-500.0,0.00019178,2]
[395023456,1764346233173,-1762.74,0.00019178,2]
[395023457,1764346233183,-500.0,0.00019178,2]
[395023458,1764346233193,-500.0,0.00019178,2]
[395023459,1764346233203,-500.0,0.00019178,2]
[395023460,1764346233213,-500.0,0.00019178,2]
[395023461,1764346233223,-524.18,0.00019178,2]
[395023462,1764346233234,-500.0,0.00019178,2]
[395023463,1764346233245,-500.0,0.00019178,2]
[395023464,1764346233255,-500.0,0.00019178,2]
[395023465,1764346233265,-500.0,0.00019178,2]
[395023466,1764346233276,-500.0,0.00019178,2]
[395023467,1764346233286,-500.0,0.00019178,2]
[395023468,1764346233297,-500.0,0.00019178,2]
[395023469,1764346233307,-1012.81,0.00019178,2]
[395023470,1764346233317,-500.0,0.00019178,2]
[395023471,1764346233327,-500.0,0.00019178,2]
[395023472,1764346233338,-542.21,0.00019178,2]
[395023473,1764346233348,-500.0,0.00019178,2]
[395023474,1764346233359,-500.0,0.00019178,2]
[395023475,1764346233369,-500.0,0.00019178,2]
[395023476,1764346233380,-500.0,0.00019178,2]
[395023477,1764346233391,-775.37,0.00019178,2]
[395023478,1764346233401,-500.0,0.00019178,2]
[395023479,1764346233411,-500.0,0.00019178,2]
[395023480,1764346233422,-526.81254712,0.00019178,2]
[395023481,1764346233433,-500.0,0.00019178,2]
[395023482,1764346233443,-1066.26,0.00019178,2]
[395023483,1764346233453,-685.29,0.00019178,2]
[395023484,1764346233464,-538.42,0.00019178,2]
[395023485,1764346233474,-941.28,0.00019178,2]
[395023486,1764346233485,-500.0,0.00019178,2]
[395023487,1764346233495,-537.61,0.00019178,2]
[395023488,1764346233506,-1113.34,0.00019178,2]
[395023489,1764346233516,-463.39315981,0.00019178,2]
[395023495,1764346237882,-446.94503474,0.00019077,2]
[395023496,1764346237894,-53.05496526,0.00019077,2]
[395023497,1764346237904,-500.0,0.00019077,2]
[395023498,1764346237915,-500.0,0.00019077,2]
[395023499,1764346237925,-486.11880723,0.00019077,2]
[395023500,1764346237937,-13.88119277,0.00019077,2]
[395023501,1764346237947,-500.0,0.00019077,2]
[395023502,1764346237958,-500.0,0.00019077,2]
[395023503,1764346237968,-500.0,0.00019077,2]
[395023504,1764346237979,-400.82978802,0.00019077,2]
[395023505,1764346237989,-109.77684019,0.00019178,2]
[395023506,1764346237999,-32.51294789,0.00019178,2]
[395023600,1764346240742,-262.0624995,0.00019178,2]
[395023601,1764346241424,-374.08989249,0.00019178,2]
[395023619,1764346244752,-206.70466012,0.00019178,2]
[395023620,1764346244761,-500.0,0.00019178,2]
[395023621,1764346244771,-500.0,0.00019178,2]
[395023622,1764346244781,-34.53621932,0.00019178,2]
[395023646,1764346246164,-771.90658402,0.00018986,2]
[395023648,1764346246176,-1088.75747209,0.00018986,2]
[395023706,1764346723180,825.85385456,0.0002,30]
[395023709,1764347151134,-1017.506735,0.00013699,2]
[395023710,1764347151156,-1172.57563861,0.00014221,2]
[395023711,1764347151179,-1172.57563861,0.00014365,2]
[395023712,1764347151201,-150.0,0.00014584,2]
[395023713,1764347151223,-273.0,0.00014805,2]
[395023714,1764347151244,-899.57563861,0.000155,2]
[395023715,1764347151265,-549.24631583,0.00016438,2]
[395023716,1764347151458,-2114.72,0.00016438,2]
[395023717,1764347151482,-500.0,0.00016438,2]
[395023718,1764347151505,-1117.33,0.00016438,2]
[395023719,1764347151526,-500.0,0.00016438,2]
[395023720,1764347151546,-500.0,0.00016438,2]
[395023721,1764347151566,-2968.82,0.00016438,2]
[395023722,1764347151587,-500.0,0.00016438,2]
[395023723,1764347151609,-5306.33,0.00016438,2]
[395023724,1764347151630,-500.0,0.00016438,2]
[395023725,1764347151651,-500.0,0.00016438,2]
[395023726,1764347151671,-500.0,0.00016438,2]
[395023727,1764347151693,-500.0,0.00016438,2]
[395023728,1764347151715,-563.86,0.00016438,2]
[395023729,1764347151735,-500.0,0.00016438,2]
[395023730,1764347151757,-500.0,0.00016438,2]
[395023731,1764347151779,-3146.44,0.00016438,2]
[395023732,1764347151799,-500.0,0.00016438,2]
[395023733,1764347151820,-500.0,0.00016438,2]
[395023734,1764347151841,-1259.72,0.00016438,2]
[395023735,1764347151862,-1254.2,0.00016438,2]
[395023736,1764347151883,-748.56,0.00016438,2]
[395023737,1764347151905,-500.0,0.00016438,2]
[395023738,1764347151928,-500.0,0.00016438,2]
[395023739,1764347151953,-500.0,0.00016438,2]
[395023740,1764347151977,-500.0,0.00016438,2]
[395023741,1764347152000,-500.0,0.00016438,2]
[395023742,1764347152020,-500.0,0.00016438,2]
[395023743,1764347152040,-995.68,0.00016438,2]
[395023744,1764347152062,-783.36,0.00016438,2]
[395023745,1764347152083,-550.8,0.00016438,2]
[395023746,1764347152105,-753.79,0.00016438,2]
[395023747,1764347152127,-500.0,0.00016438,2]
[395023748,1764347152148,-500.0,0.00016438,2]
[395023749,1764347152168,-682.36,0.00016438,2]
[395023750,1764347152188,-500.0,0.00016438,2]
[395023751,1764347152207,-907.01,0.00016438,2]
[395023752,1764347152230,-3495.83,0.00016438,2]
[395023753,1764347152250,-500.0,0.00016438,2]
[395023754,1764347152271,-500.0,0.00016438,2]
[395023755,1764347152291,-500.0,0.00016438,2]
[395023756,1764347152311,-1193.95,0.00016438,2]
[395023757,1764347152332,-500.0,0.00016438,2]
[395023758,1764347152353,-1079.75,0.00016438,2]
[395023759,1764347152374,-1241.09,0.00016438,2]
[395023760,1764347152394,-613.26,0.00016438,2]
[395023761,1764347152415,-1831.53,0.00016438,2]
[395023762,1764347152437,-991.54,0.00016438,2]
[395023763,1764347152460,-500.0,0.00016438,2]
[395023764,1764347152481,-2622.89,0.00016438,2]
[395023765,1764347152501,-500.0,0.00016438,2]
[395023766,1764347152521,-638.17,0.00016438,2]
[395023767,1764347152542,-981.31,0.00016438,2]
[395023768,1764347152564,-500.0,0.00016438,2]
[395023769,1764347152586,-500.0,0.00016438,2]
[395023770,1764347152607,-500.0,0.00016438,2]
[395023771,1764347152629,-1056.57,0.00016438,2]
[395023773,1764347152651,-4324.27,0.00016438,2]
[395023775,1764347152674,-500.0,0.00016438,2]
[395023777,1764347152695,-500.0,0.00016438,2]
[395023779,1764347152717,-500.0,0.00016438,2]
[395023781,1764347152740,-2438.73,0.00016438,2]
[395023782,1764347152761,-50000.0,0.00016438,2]
[395023784,1764347152785,-177.0,0.00016584,2]
[395023786,1764347152805,-2114.72,0.00016712,2]
[395023788,1764347152825,-500.0,0.00016712,2]
[395023789,1764347152845,-1117.33,0.00016712,2]
[395023790,1764347152865,-500.0,0.00016712,2]
[395023791,1764347152886,-500.0,0.00016712,2]
[395023792,1764347152913,-2968.82,0.00016712,2]
[395023793,1764347152934,-500.0,0.00016712,2]
[395023794,1764347152957,-5306.33,0.00016712,2]
[395023795,1764347152983,-500.0,0.00016712,2]
[395023796,1764347153004,-500.0,0.00016712,2]
[395023797,1764347153026,-500.0,0.00016712,2]
[395023798,1764347153047,-500.0,0.00016712,2]
[395023799,1764347153069,-563.86,0.00016712,2]
[395023800,1764347153090,-500.0,0.00016712,2]
[395023801,1764347153112,-500.0,0.00016712,2]
[395023802,1764347153133,-3146.44,0.00016712,2]
[395023803,1764347153154,-500.0,0.00016712,2]
[395023804,1764347153175,-500.0,0.00016712,2]
[395023805,1764347153196,-1259.72,0.00016712,2]
[395023806,1764347153221,-1254.2,0.00016712,2]
[395023807,1764347153243,-748.56,0.00016712,2]
[395023808,1764347153265,-500.0,0.00016712,2]
[395023809,1764347153287,-500.0,0.00016712,2]
[395023810,1764347153308,-500.0,0.00016712,2]
[395023811,1764347153329,-500.0,0.00016712,2]
[395023812,1764347153350,-500.0,0.00016712,2]
[395023813,1764347153372,-500.0,0.00016712,2]
[395023814,1764347153393,-995.68,0.00016712,2]
[395023815,1764347153414,-783.36,0.00016712,2]
[395023816,1764347153436,-550.8,0.00016712,2]
[395023817,1764347153458,-753.79,0.00016712,2]
[395023818,1764347153483,-500.0,0.00016712,2]
[395023819,1764347153505,-500.0,0.00016712,2]
[395023820,1764347153526,-682.36,0.00016712,2]
[395023821,1764347153548,-154.03039175,0.00016712,2]
[395023822,1764347153570,-907.01,0.00016712,2]
[395023823,1764347153593,-3495.83,0.00016712,2]
[395023824,1764347153615,-181.73022894,0.00016712,2]
[395023825,1764347153637,-500.0,0.00016712,2]
[395023826,1764347153659,-500.0,0.00016712,2]
[395023827,1764347153681,-1193.95,0.00016712,2]
[395023828,1764347153705,-500.0,0.00016712,2]
[395023829,1764347153728,-1079.75,0.00016712,2]
[395023830,1764347153750,-1241.09,0.00016712,2]
[395023831,1764347153773,-613.26,0.00016712,2]
[395023832,1764347153795,-1831.53,0.00016712,2]
[395023833,1764347153818,-991.54,0.00016712,2]
[395023834,1764347153840,-500.0,0.00016712,2]
[395023835,1764347153864,-2622.89,0.00016712,2]
[395023836,1764347153892,-258.04746271,0.00016712,2]
[395023837,1764347153919,-638.17,0.00016712,2]
[395023838,1764347153944,-981.31,0.00016712,2]
[395023839,1764347153971,-500.0,0.00016712,2]
[395023840,1764347153997,-439.59953994,0.00016712,2]
[395023847,1764347225088,-500.0,0.00016111,2]
[395023848,1764347225109,-500.0,0.00016274,2]
[395023849,1764347225130,-570.43899993,0.00016338,2]
[395023850,1764347225151,-500.0,0.00016438,2]
[395023851,1764347225173,-500.0,0.00016438,2]
[395023852,1764347225193,-500.0,0.00016438,2]
[395023853,1764347225213,-850.93,0.00016438,2]
[395023854,1764347225233,-1062.9,0.00016438,2]
[395023855,1764347225253,-4176.62,0.00016438,2]
[395023856,1764347225277,-500.0,0.00016438,2]
[395023857,1764347225297,-308.6504957,0.00016438,2]
[395023858,1764347225318,-838.56,0.00016438,2]
[395023859,1764347225338,-500.0,0.00016438,2]
[395023860,1764347225359,-500.0,0.00016438,2]
[395023861,1764347225381,-4428.86,0.00016438,2]
[395023862,1764347225401,-500.0,0.00016438,2]
[395023863,1764347225421,-500.0,0.00016438,2]
[395023864,1764347225442,-1005.93,0.00016438,2]
[395023865,1764347225462,-500.0,0.00016438,2]
[395023866,1764347225483,-500.0,0.00016438,2]
[395023867,1764347225503,-21963.64,0.00016438,2]
[395023868,1764347225525,-500.0,0.00016438,2]
[395023869,1764347225545,-670.4,0.00016438,2]
[395023870,1764347225565,-500.0,0.00016438,2]
[395023871,1764347225588,-500.0,0.00016438,2]
[395023872,1764347225609,-514.51,0.00016438,2]
[395023873,1764347225629,-775.45,0.00016438,2]
[395023874,1764347225649,-4281.28,0.00016438,2]
[395023875,1764347225669,-500.0,0.00016438,2]
[395023876,1764347225689,-500.0,0.00016438,2]
[395023877,1764347225709,-500.0,0.00016438,2]
[395023878,1764347225730,-917.29,0.00016438,2]
[395023879,1764347225751,-500.0,0.00016438,2]
[395023880,1764347225774,-703.18,0.00016438,2]
[395023881,1764347225794,-60.40046006,0.00016712,2]
[395023882,1764347225816,-500.0,0.00016712,2]
[395023883,1764347225837,-1056.57,0.00016712,2]
[395023884,1764347225858,-4324.27,0.00016712,2]
[395023885,1764347225880,-500.0,0.00016712,2]
[395023886,1764347225901,-500.0,0.00016712,2]
[395023887,1764347225921,-2438.73,0.00016712,2]
[395023888,1764347225945,-500.0,0.00016712,2]
[395023889,1764347225965,-500.0,0.00016712,2]
[395023890,1764347225985,-636.43091675,0.00016712,2]
[395023891,1764347226006,-850.93,0.00016712,2]
[395023892,1764347226031,-1062.9,0.00016712,2]
[395023893,1764347226052,-4176.62,0.00016712,2]
[395023894,1764347226073,-338.47881162,0.00016712,2]
[395023895,1764347226094,-838.56,0.00016712,2]
[395023896,1764347226115,-500.0,0.00016712,2]
[395023897,1764347226135,-500.0,0.00016712,2]
[395023898,1764347226156,-4428.86,0.00016712,2]
[395023899,1764347226176,-500.0,0.00016712,2]
[395023900,1764347226196,-1005.93,0.00016712,2]
[395023901,1764347226216,-500.0,0.00016712,2]
[395023902,1764347226235,-500.0,0.00016712,2]
[395023903,1764347226257,-500.0,0.00016712,2]
[395023904,1764347226278,-20280.18706994,0.00016712,2]
[395023905,1764347232088,-500.0,0.00016438,2]
[395023906,1764347232108,-59.53848458,0.00016712,2]
[395023907,1764347236174,-500.0,0.00016274,2]
[395023908,1764347236197,-150.0,0.00016575,2]
[395023909,1764347236219,-1623.91444548,0.00016712,2]
[395023910,1764347236241,-500.0,0.00016712,2]
[395023911,1764347236262,-670.4,0.00016712,2]
[395023912,1764347236286,-500.0,0.00016712,2]
[395023913,1764347236307,-500.0,0.00016712,2]
[395023914,1764347236335,-514.51,0.00016712,2]
[395023915,1764347236356,-775.45,0.00016712,2]
[395023916,1764347236377,-4281.28,0.00016712,2]
[395023917,1764347236399,-500.0,0.00016712,2]
[395023918,1764347236421,-500.0,0.00016712,2]
[395023919,1764347236445,-500.0,0.00016712,2]
[395023920,1764347236469,-917.29,0.00016712,2]
[395023921,1764347236493,-500.0,0.00016712,2]
[395023922,1764347236515,-703.18,0.00016712,2]
[395023923,1764347236541,-500.0,0.00016712,2]
[395023924,1764347236562,-2114.72,0.00016986,2]
[395023925,1764347236584,-500.0,0.00016986,2]
[395023926,1764347236606,-1117.33,0.00016986,2]
[395023927,1764347236626,-500.0,0.00016986,2]
[395023928,1764347236647,-500.0,0.00016986,2]
[395023929,1764347236668,-2968.82,0.00016986,2]
[395023930,1764347236689,-500.0,0.00016986,2]
[395023931,1764347236711,-887.76956152,0.00016986,2]
[395023932,1764347242379,-397.48065747,0.00016338,2]
[395023933,1764347242399,-4418.56043848,0.00016986,2]
[395023934,1764347242419,-500.0,0.00016986,2]
[395023935,1764347242438,-500.0,0.00016986,2]
[395023936,1764347242457,-500.0,0.00016986,2]
[395023937,1764347242476,-500.0,0.00016986,2]
[395023938,1764347242496,-563.86,0.00016986,2]
[395023939,1764347242516,-500.0,0.00016986,2]
[395023940,1764347242538,-500.0,0.00016986,2]
[395023941,1764347242561,-500.0,0.00016986,2]
[395023942,1764347242581,-500.0,0.00016986,2]
[395023943,1764347242600,-1254.2,0.00016986,2]
[395023944,1764347242622,-1259.72,0.00016986,2]
[395023945,1764347242643,-748.56,0.00016986,2]
[395023946,1764347242663,-500.0,0.00016986,2]
[395023947,1764347242685,-500.0,0.00016986,2]
[395023948,1764347242707,-500.0,0.00016986,2]
[395023949,1764347242729,-500.0,0.00016986,2]
[395023950,1764347242749,-500.0,0.00016986,2]
[395023951,1764347242771,-500.0,0.00016986,2]
[395023952,1764347242799,-995.68,0.00016986,2]
[395023953,1764347242822,-783.36,0.00016986,2]
[395023954,1764347242844,-550.8,0.00016986,2]
[395023955,1764347242865,-753.79,0.00016986,2]
[395023956,1764347242886,-510.42013348,0.00016986,2]
[395023957,1764347242906,-500.0,0.00016986,2]
[395023958,1764347242926,-907.01,0.00016986,2]
[395023959,1764347242953,-3495.83,0.00016986,2]
[395023960,1764347242972,-500.0,0.00016986,2]
[395023961,1764347242993,-500.0,0.00016986,2]
[395023962,1764347243014,-1193.95,0.00016986,2]
[395023963,1764347243036,-1079.75,0.00016986,2]
[395023964,1764347243056,-1241.09,0.00016986,2]
[395023965,1764347243077,-613.26,0.00016986,2]
[395023966,1764347243097,-991.54,0.00016986,2]
[395023967,1764347243117,-2622.89,0.00016986,2]
[395023968,1764347243137,-638.17,0.00016986,2]
[395023969,1764347243158,-981.31,0.00016986,2]
[395023970,1764347243178,-500.0,0.00016986,2]
[395023971,1764347243197,-500.0,0.00016986,2]
[395023972,1764347243217,-500.0,0.00016986,2]
[395023973,1764347243235,-1056.57,0.00016986,2]
[395023974,1764347243257,-4324.27,0.00016986,2]
[395023975,1764347243278,-500.0,0.00016986,2]
[395023976,1764347243297,-500.0,0.00016986,2]
[395023977,1764347243317,-2438.73,0.00016986,2]
[395023978,1764347243337,-500.0,0.00016986,2]
[395023979,1764347243358,-500.0,0.00016986,2]
[395023980,1764347243379,-850.93,0.00016986,2]
[395023981,1764347243398,-1062.9,0.00016986,2]
[395023982,1764347243417,-4176.62,0.00016986,2]
[395023983,1764347243437,-838.56,0.00016986,2]
[395023984,1764347243457,-500.0,0.00016986,2]
[395023985,1764347243477,-500.0,0.00016986,2]
[395023986,1764347243499,-4428.86,0.00016986,2]
[395023987,1764347243519,-421.95997842,0.00016986,2]
[395023988,1764347243543,-1005.93,0.00016986,2]
[395023989,1764347243563,-500.0,0.00016986,2]
[395023990,1764347243585,-432.28825857,0.00016986,2]
[395023991,1764347243606,-500.0,0.00016986,2]
[395023992,1764347243626,-21963.64,0.00016986,2]
[395023993,1764347243647,-500.0,0.00016986,2]
[395023994,1764347243668,-670.4,0.00016986,2]
[395023995,1764347243689,-500.0,0.00016986,2]
[395023996,1764347243711,-500.0,0.00016986,2]
[395023997,1764347243732,-514.51,0.00016986,2]
[395023998,1764347243752,-775.45,0.00016986,2]
[395023999,1764347243773,-4281.28,0.00016986,2]
[395024000,1764347243796,-500.0,0.00016986,2]
[395024001,1764347243819,-500.0,0.00016986,2]
[395024002,1764347243840,-187.84472321,0.00016986,2]
[395024003,1764347243862,-917.29,0.00016986,2]
[395024004,1764347243883,-500.0,0.00016986,2]
[395024005,1764347243903,-703.18,0.00016986,2]
[395024006,1764347243923,-579.88458797,0.00016986,2]
[395024007,1764347243946,-195.19681,0.00017061,2]
[395024008,1764347243969,-500.0,0.00017259,2]
[395024009,1764347243991,-230.58085162,0.00017259,2]
[395024010,1764347244012,-500.0,0.00017259,2]
[395024011,1764347244036,-500.0,0.00017259,2]
[395024012,1764347244059,-500.0,0.00017259,2]